[Event "Live Chess"]
[Site "Chess.com"]
[Date "2024.06.01"]
[Round "-"]
[White "chessfiction"]
[Black "AndyJWise"]
[Result "1-0"]
[WhiteElo "2377"]
[BlackElo "1045"]
[TimeControl "300"]
[EndTime "14:24:26 PDT"]
[Termination "chessfiction won by resignation"]

1. e4 {[%clk 0:04:53.6]} 1... c6 {[%clk 0:04:58.8]} 2. d4 {[%clk 0:04:51.3]}
2... d5 {[%clk 0:04:57.8]} 3. e5 {[%clk 0:04:50.8]} 3... Bf5 {[%clk 0:04:56.5]}
4. Nf3 {[%clk 0:04:47.4]} 4... e6 {[%clk 0:04:53.2]} 5. Nbd2 {[%clk 0:04:42.2]}
5... c5 {[%clk 0:04:49.6]} 6. dxc5 {[%clk 0:04:40.5]} 6... Nc6 {[%clk
0:04:44.4]} 7. Nb3 {[%clk 0:04:33.8]} 7... Nge7 {[%clk 0:04:35.1]} 8. Be3 {[%clk
0:04:31.9]} 8... Ng6 {[%clk 0:04:32.6]} 9. Bb5 {[%clk 0:04:29.8]} 9... a6 {[%clk
0:04:21.3]} 10. Bxc6+ {[%clk 0:04:28.3]} 10... bxc6 {[%clk 0:04:20.2]} 11. Nfd4
{[%clk 0:04:27.8]} 11... Nxe5 {[%clk 0:04:15]} 12. Nxf5 {[%clk 0:04:25.5]} 12...
exf5 {[%clk 0:04:10.1]} 13. Bd4 {[%clk 0:04:23.1]} 13... Qe7 {[%clk 0:04:05.4]}
14. O-O {[%clk 0:04:22]} 14... g6 {[%clk 0:03:59.8]} 15. Re1 {[%clk 0:04:20.8]}
15... Bg7 {[%clk 0:03:58.9]} 16. f4 {[%clk 0:04:20.3]} 16... O-O {[%clk
0:03:56.5]} 17. Bxe5 {[%clk 0:04:17]} 17... Bxe5 {[%clk 0:03:55.1]} 18. Rxe5
{[%clk 0:04:16.9]} 18... Qh4 {[%clk 0:03:49.8]} 19. Qf3 {[%clk 0:04:14.9]} 19...
Rfe8 {[%clk 0:03:47.4]} 20. Rae1 {[%clk 0:04:12.7]} 20... Kf8 {[%clk 0:03:43.9]}
21. Rxe8+ {[%clk 0:04:11.2]} 21... Rxe8 {[%clk 0:03:43]} 22. Rxe8+ {[%clk
0:04:10.9]} 22... Kxe8 {[%clk 0:03:42.2]} 23. g3 {[%clk 0:04:09.5]} 23... Qe7
{[%clk 0:03:38.9]} 24. Kf2 {[%clk 0:04:08]} 1-0

[Event "Live Chess"]
[Site "Chess.com"]
[Date "2024.06.01"]
[Round "-"]
[White "MagnersCarlsberg2870"]
[Black "Mangoalo"]
[Result "1-0"]
[WhiteElo "1769"]
[BlackElo "1067"]
[TimeControl "300"]
[EndTime "14:24:31 PDT"]
[Termination "MagnersCarlsberg2870 won by resignation"]

1. d4 {[%clk 0:04:56.2]} 1... Nf6 {[%clk 0:04:58.3]} 2. Nf3 {[%clk 0:04:53.6]}
2... e6 {[%clk 0:04:58.2]} 3. e3 {[%clk 0:04:52.4]} 3... Bb4+ {[%clk 0:04:56.3]}
4. c3 {[%clk 0:04:51.3]} 4... Be7 {[%clk 0:04:55.8]} 5. Bd3 {[%clk 0:04:50.4]}
5... O-O {[%clk 0:04:55.6]} 6. Nbd2 {[%clk 0:04:49.5]} 6... d5 {[%clk
0:04:54.8]} 7. Qe2 {[%clk 0:04:48.7]} 7... Nc6 {[%clk 0:04:52.2]} 8. O-O {[%clk
0:04:46.6]} 8... h6 {[%clk 0:04:52]} 9. e4 {[%clk 0:04:45.5]} 9... Bd7 {[%clk
0:04:51.9]} 10. e5 {[%clk 0:04:43.8]} 10... Ne8 {[%clk 0:04:51.4]} 11. Bc2
{[%clk 0:04:41]} 11... f6 {[%clk 0:04:51.3]} 12. Qd3 {[%clk 0:04:39.9]} 12...
fxe5 {[%clk 0:04:49.4]} 13. Qh7+ {[%clk 0:04:38.2]} 13... Kf7 {[%clk 0:04:47.8]}
14. Bg6+ {[%clk 0:04:37.1]} 14... Kf6 {[%clk 0:04:46.7]} 15. Bh5 {[%clk
0:04:26]} 15... exd4 {[%clk 0:04:40.9]} 1-0

[Event "Live Chess"]
[Site "Chess.com"]
[Date "2024.06.01"]
[Round "-"]
[White "GEMdzq"]
[Black "PughmanChess"]
[Result "1-0"]
[WhiteElo "2315"]
[BlackElo "1379"]
[TimeControl "300"]
[EndTime "14:24:44 PDT"]
[Termination "GEMdzq won by checkmate"]

1. e4 {[%clk 0:04:57.6]} 1... c6 {[%clk 0:04:58]} 2. d4 {[%clk 0:04:56.7]} 2...
d5 {[%clk 0:04:57.5]} 3. e5 {[%clk 0:04:56.4]} 3... c5 {[%clk 0:04:55.8]} 4.
dxc5 {[%clk 0:04:54.5]} 4... e6 {[%clk 0:04:54.5]} 5. Be3 {[%clk 0:04:53.8]}
5... Nd7 {[%clk 0:04:51.7]} 6. Nf3 {[%clk 0:04:51.5]} 6... Ne7 {[%clk
0:04:49.2]} 7. Bb5 {[%clk 0:04:45.9]} 7... Nf5 {[%clk 0:04:47.3]} 8. Bd4 {[%clk
0:04:42]} 8... Nxd4 {[%clk 0:04:36.8]} 9. Qxd4 {[%clk 0:04:40.3]} 9... Qa5+
{[%clk 0:04:22.9]} 10. Nc3 {[%clk 0:04:38.5]} 10... a6 {[%clk 0:04:22.4]} 11.
Bxd7+ {[%clk 0:04:35.2]} 11... Bxd7 {[%clk 0:04:21.3]} 12. b4 {[%clk 0:04:34]}
12... Qc7 {[%clk 0:04:05.4]} 13. O-O {[%clk 0:04:32.4]} 13... Rd8 {[%clk
0:04:00.7]} 14. Rfe1 {[%clk 0:04:07.4]} 14... Be7 {[%clk 0:03:58.5]} 15. Ne2
{[%clk 0:03:53.5]} 15... a5 {[%clk 0:03:57.2]} 16. c3 {[%clk 0:03:51.9]} 16...
Bb5 {[%clk 0:03:48.6]} 17. Ng3 {[%clk 0:03:45.7]} 17... axb4 {[%clk 0:03:41.7]}
18. cxb4 {[%clk 0:03:44.4]} 18... Bc4 {[%clk 0:03:40.2]} 19. Nd2 {[%clk
0:03:39]} 19... Ba6 {[%clk 0:03:18.7]} 20. a4 {[%clk 0:03:36.8]} 20... b5 {[%clk
0:03:14.6]} 21. a5 {[%clk 0:03:31.8]} 21... Bb7 {[%clk 0:03:05.6]} 22. Nh5
{[%clk 0:03:28.9]} 22... O-O {[%clk 0:03:01.7]} 23. Qg4 {[%clk 0:03:26.7]} 23...
g6 {[%clk 0:02:59.8]} 24. Nf6+ {[%clk 0:03:24.2]} 24... Bxf6 {[%clk 0:02:56]}
25. exf6 {[%clk 0:03:22.6]} 25... Kh8 {[%clk 0:02:51.2]} 26. Nf3 {[%clk
0:03:14.7]} 26... h5 {[%clk 0:02:34.8]} 27. Qg5 {[%clk 0:03:13.4]} 27... Kh7
{[%clk 0:02:32]} 28. Nd4 {[%clk 0:03:02.4]} 28... Rde8 {[%clk 0:01:59]} 29. a6
{[%clk 0:02:56.4]} 29... Ba8 {[%clk 0:01:56.6]} 30. Re5 {[%clk 0:02:50.5]} 30...
Rh8 {[%clk 0:01:52]} 31. h4 {[%clk 0:02:36.8]} 31... Rd8 {[%clk 0:01:35.4]} 32.
Nxb5 {[%clk 0:02:35.2]} 32... Qb8 {[%clk 0:01:30.6]} 33. Nd6 {[%clk 0:02:34.2]}
33... Qxb4 {[%clk 0:01:19.5]} 34. Nxf7 {[%clk 0:02:30]} 34... Qb2 {[%clk
0:01:15.8]} 35. Qh6+ {[%clk 0:02:28.4]} 35... Kg8 {[%clk 0:01:13.7]} 36. Qg7#
{[%clk 0:02:28.3]} 1-0

[Event "Live Chess"]
[Site "Chess.com"]
[Date "2024.06.01"]
[Round "-"]
[White "Tushinskiy"]
[Black "Zhevzh1k7"]
[Result "1-0"]
[WhiteElo "2280"]
[BlackElo "1105"]
[TimeControl "300"]
[EndTime "14:24:51 PDT"]
[Termination "Tushinskiy won by checkmate"]

1. d4 {[%clk 0:04:56]} 1... Nf6 {[%clk 0:04:57.9]} 2. c3 {[%clk 0:04:55.9]} 2...
e6 {[%clk 0:04:54.5]} 3. Nf3 {[%clk 0:04:55.8]} 3... d5 {[%clk 0:04:53.1]} 4.
Bf4 {[%clk 0:04:55.7]} 4... Bd6 {[%clk 0:04:51]} 5. Bg3 {[%clk 0:04:55.6]} 5...
Bxg3 {[%clk 0:04:49]} 6. hxg3 {[%clk 0:04:53.4]} 6... Nc6 {[%clk 0:04:45.9]} 7.
Nbd2 {[%clk 0:04:50.3]} 7... Bd7 {[%clk 0:04:44.5]} 8. Qc2 {[%clk 0:04:49.7]}
8... Qe7 {[%clk 0:04:43.2]} 9. e4 {[%clk 0:04:49.6]} 9... dxe4 {[%clk
0:04:41.9]} 10. Nxe4 {[%clk 0:04:49.5]} 10... Nxe4 {[%clk 0:04:40.2]} 11. Qxe4
{[%clk 0:04:49.4]} 11... O-O {[%clk 0:04:34.3]} 12. Qxh7# {[%clk 0:04:48]} 1-0

[Event "Live Chess"]
[Site "Chess.com"]
[Date "2024.06.01"]
[Round "-"]
[White "Dhaydon19"]
[Black "WorcesterYork"]
[Result "1-0"]
[WhiteElo "2678"]
[BlackElo "2491"]
[TimeControl "300"]
[EndTime "14:25:05 PDT"]
[Termination "Dhaydon19 won by resignation"]

1. d4 {[%clk 0:04:57.6]} 1... d6 {[%clk 0:04:58.9]} 2. Nf3 {[%clk 0:04:57.2]}
2... Bg4 {[%clk 0:04:57.4]} 3. g3 {[%clk 0:04:56.9]} 3... Bxf3 {[%clk
0:04:56.6]} 4. exf3 {[%clk 0:04:56.6]} 4... Nd7 {[%clk 0:04:56.1]} 5. Bg2 {[%clk
0:04:56.4]} 5... c6 {[%clk 0:04:56]} 6. c3 {[%clk 0:04:56]} 6... h5 {[%clk
0:04:55.3]} 7. O-O {[%clk 0:04:55.7]} 7... h4 {[%clk 0:04:54.8]} 8. f4 {[%clk
0:04:55.4]} 8... h3 {[%clk 0:04:52.6]} 9. Bf3 {[%clk 0:04:53.2]} 9... e6 {[%clk
0:04:52.1]} 10. Nd2 {[%clk 0:04:52.4]} 10... d5 {[%clk 0:04:51.6]} 11. Re1
{[%clk 0:04:52.1]} 11... Ne7 {[%clk 0:04:50.1]} 12. Nf1 {[%clk 0:04:51.8]} 12...
Nf6 {[%clk 0:04:47.4]} 13. Ne3 {[%clk 0:04:51.2]} 13... Nc8 {[%clk 0:04:46.7]}
14. f5 {[%clk 0:04:49.4]} 14... Be7 {[%clk 0:04:40.9]} 15. fxe6 {[%clk
0:04:48.4]} 15... fxe6 {[%clk 0:04:40.7]} 16. Ng4 {[%clk 0:04:47.9]} 16... O-O
{[%clk 0:04:36.9]} 17. Rxe6 {[%clk 0:04:44.9]} 17... Nd6 {[%clk 0:04:36]} 18.
Ne5 {[%clk 0:04:38.4]} 18... Nfe4 {[%clk 0:04:34.4]} 19. Ng6 {[%clk 0:04:30.9]}
19... Re8 {[%clk 0:04:32.5]} 20. Bxe4 {[%clk 0:04:26]} 20... Nxe4 {[%clk
0:04:31.4]} 21. Qh5 {[%clk 0:04:25.6]} 21... Nf6 {[%clk 0:04:27.7]} 22. Qxh3
{[%clk 0:04:16.9]} 22... Bd6 {[%clk 0:04:27]} 23. Bg5 {[%clk 0:04:08.9]} 23...
Qd7 {[%clk 0:04:24.5]} 24. Rxe8+ {[%clk 0:04:03.8]} 24... Qxe8 {[%clk
0:04:24.4]} 25. Bxf6 {[%clk 0:04:02.6]} 25... Qxg6 {[%clk 0:04:23.3]} 26. Qe6+
{[%clk 0:04:01.6]} 26... Qf7 {[%clk 0:04:19.7]} 27. Qxd6 {[%clk 0:03:59.9]}
27... Qxf6 {[%clk 0:04:18.8]} 28. Qxf6 {[%clk 0:03:55.7]} 28... gxf6 {[%clk
0:04:18.7]} 29. Re1 {[%clk 0:03:54.5]} 29... Kf7 {[%clk 0:04:18.5]} 30. Kg2
{[%clk 0:03:52.4]} 30... a5 {[%clk 0:04:18.4]} 31. h4 {[%clk 0:03:51.4]} 31...
a4 {[%clk 0:04:17.9]} 32. a3 {[%clk 0:03:50.9]} 32... Ra5 {[%clk 0:04:16.2]} 33.
g4 {[%clk 0:03:50]} 33... Rb5 {[%clk 0:04:15.7]} 34. Re2 {[%clk 0:03:49]} 1-0

[Event "Live Chess"]
[Site "Chess.com"]
[Date "2024.06.01"]
[Round "-"]
[White "grillage"]
[Black "Crowded_House"]
[Result "1-0"]
[WhiteElo "1872"]
[BlackElo "1733"]
[TimeControl "300"]
[EndTime "14:25:10 PDT"]
[Termination "grillage won by resignation"]

1. d4 {[%clk 0:04:56.9]} 1... e6 {[%clk 0:04:58.6]} 2. Nf3 {[%clk 0:04:55.9]}
2... d5 {[%clk 0:04:58.1]} 3. c4 {[%clk 0:04:53.2]} 3... c6 {[%clk 0:04:56.7]}
4. cxd5 {[%clk 0:04:51.8]} 4... exd5 {[%clk 0:04:54.8]} 5. Nc3 {[%clk
0:04:50.4]} 5... Nf6 {[%clk 0:04:52.6]} 6. Qc2 {[%clk 0:04:49.4]} 6... Bd6
{[%clk 0:04:48.4]} 7. Bg5 {[%clk 0:04:48.1]} 7... Nbd7 {[%clk 0:04:46]} 8. e3
{[%clk 0:04:46.3]} 8... h6 {[%clk 0:04:44.7]} 9. Bh4 {[%clk 0:04:43.8]} 9... O-O
{[%clk 0:04:40.7]} 10. Bd3 {[%clk 0:04:42.8]} 10... Re8 {[%clk 0:04:38.6]} 11.
O-O {[%clk 0:04:41.4]} 11... Be7 {[%clk 0:04:37.3]} 12. Rab1 {[%clk 0:04:37.6]}
12... Ng4 {[%clk 0:04:35.1]} 13. Bxe7 {[%clk 0:04:35.8]} 13... Qxe7 {[%clk
0:04:34]} 14. b4 {[%clk 0:04:33.4]} 14... a6 {[%clk 0:04:32.4]} 15. a4 {[%clk
0:04:31.6]} 15... b5 {[%clk 0:04:26.7]} 16. a5 {[%clk 0:04:27.7]} 16... Nf8
{[%clk 0:04:18]} 17. Ne2 {[%clk 0:04:26.4]} 17... Nf6 {[%clk 0:04:12.3]} 18.
Qxc6 {[%clk 0:04:24.7]} 18... Bb7 {[%clk 0:04:06.9]} 19. Qc2 {[%clk 0:04:19.2]}
19... Rec8 {[%clk 0:04:04.7]} 20. Qb3 {[%clk 0:04:18.3]} 20... Rc7 {[%clk
0:04:00.9]} 21. Rbc1 {[%clk 0:04:17.5]} 21... Rac8 {[%clk 0:04:00.1]} 22. Rxc7
{[%clk 0:04:15.4]} 22... Rxc7 {[%clk 0:03:59.5]} 23. Rc1 {[%clk 0:04:13.8]}
23... Rxc1+ {[%clk 0:03:52.1]} 24. Nxc1 {[%clk 0:04:12.9]} 24... Qc7 {[%clk
0:03:51.1]} 25. Qc2 {[%clk 0:04:12.2]} 25... Qxc2 {[%clk 0:03:49.5]} 26. Bxc2
{[%clk 0:04:10.9]} 26... Ne6 {[%clk 0:03:40]} 27. Nd3 {[%clk 0:04:07.6]} 27...
Ne4 {[%clk 0:03:31.6]} 28. Nc5 {[%clk 0:03:58.8]} 28... N6xc5 {[%clk 0:03:15.6]}
29. dxc5 {[%clk 0:03:57.9]} 29... Nc3 {[%clk 0:03:10.3]} 30. Bb3 {[%clk
0:03:48.1]} 30... Kf8 {[%clk 0:02:59.8]} 31. Nd4 {[%clk 0:03:45.9]} 31... Ke7
{[%clk 0:02:42.3]} 32. f3 {[%clk 0:03:40.6]} 32... Na4 {[%clk 0:02:35.3]} 33. c6
{[%clk 0:03:35]} 33... Bc8 {[%clk 0:02:33]} 34. Bxd5 {[%clk 0:03:33.7]} 34...
Nc3 {[%clk 0:02:19.8]} 35. Bb3 {[%clk 0:03:31.2]} 35... f6 {[%clk 0:02:17.3]}
36. Kf2 {[%clk 0:03:26.2]} 36... Kd6 {[%clk 0:02:08.9]} 37. Ke1 {[%clk
0:03:18.5]} 37... Nd5 {[%clk 0:02:07.2]} 38. Bxd5 {[%clk 0:03:15.3]} 38... Kxd5
{[%clk 0:02:07.1]} 39. Kd2 {[%clk 0:03:08.6]} 39... Kc4 {[%clk 0:02:06.1]} 40.
Nc2 {[%clk 0:03:05.6]} 40... f5 {[%clk 0:01:55.6]} 41. f4 {[%clk 0:02:58.6]}
41... g5 {[%clk 0:01:53.1]} 42. g3 {[%clk 0:02:57.4]} 42... gxf4 {[%clk
0:01:35.4]} 43. exf4 {[%clk 0:02:54.9]} 43... Be6 {[%clk 0:01:29.8]} 44. Ke3
{[%clk 0:02:49.3]} 44... Kc3 {[%clk 0:01:17.1]} 45. Nd4 {[%clk 0:02:47.5]} 45...
Bc8 {[%clk 0:01:15.6]} 46. c7 {[%clk 0:02:34.7]} 46... Kxb4 {[%clk 0:01:14.1]}
47. Nc6+ {[%clk 0:02:34]} 47... Kc5 {[%clk 0:01:11.3]} 48. Ne7 {[%clk
0:02:31.7]} 48... Bd7 {[%clk 0:01:04.8]} 49. c8=Q+ {[%clk 0:02:29]} 49... Bxc8
{[%clk 0:01:03.6]} 50. Nxc8 {[%clk 0:02:28.1]} 50... b4 {[%clk 0:01:02.7]} 51.
Kd3 {[%clk 0:02:26.7]} 51... Kb5 {[%clk 0:01:01.8]} 52. Kc2 {[%clk 0:02:22.8]}
52... Kxa5 {[%clk 0:01:00.7]} 53. Nd6 {[%clk 0:02:21.6]} 53... Ka4 {[%clk
0:00:56.3]} 54. Kb2 {[%clk 0:02:16.1]} 54... Ka5 {[%clk 0:00:56.2]} 55. Nxf5
{[%clk 0:02:15]} 55... Kb5 {[%clk 0:00:54.3]} 56. Nd4+ {[%clk 0:02:14]} 56...
Kc5 {[%clk 0:00:51.1]} 57. f5 {[%clk 0:02:13.2]} 57... Kd6 {[%clk 0:00:46.5]}
58. g4 {[%clk 0:02:10.8]} 58... Ke5 {[%clk 0:00:43.5]} 59. Kb3 {[%clk
0:02:09.3]} 59... h5 {[%clk 0:00:38.1]} 60. h3 {[%clk 0:02:08]} 60... hxg4
{[%clk 0:00:36.5]} 61. hxg4 {[%clk 0:02:06.7]} 61... Kf6 {[%clk 0:00:32.4]} 62.
Kxb4 {[%clk 0:02:03.8]} 62... Kg5 {[%clk 0:00:31.2]} 63. Ka5 {[%clk 0:02:02.3]}
63... Kxg4 {[%clk 0:00:30.2]} 64. f6 {[%clk 0:02:01.4]} 64... Kf4 {[%clk
0:00:29]} 65. f7 {[%clk 0:02:00.8]} 65... Ke4 {[%clk 0:00:28.9]} 66. f8=Q {[%clk
0:01:59.8]} 66... Kxd4 {[%clk 0:00:28.8]} 67. Kxa6 {[%clk 0:01:58.2]} 67... Ke5
{[%clk 0:00:28.4]} 68. Kb5 {[%clk 0:01:57.1]} 1-0

[Event "Live Chess"]
[Site "Chess.com"]
[Date "2024.06.01"]
[Round "-"]
[White "jellhhggffhjjjjjj"]
[Black "ogpin"]
[Result "0-1"]
[WhiteElo "410"]
[BlackElo "2194"]
[TimeControl "300"]
[EndTime "14:25:12 PDT"]
[Termination "ogpin won by checkmate"]

1. b3 {[%clk 0:04:47.8]} 1... a5 {[%clk 0:04:59.9]} 2. Bb2 {[%clk 0:04:46.5]}
2... Ra6 {[%clk 0:04:59.8]} 3. e3 {[%clk 0:04:43.7]} 3... Nf6 {[%clk 0:04:59.6]}
4. Bxa6 {[%clk 0:04:42.1]} 4... Nxa6 {[%clk 0:04:58.7]} 5. d4 {[%clk 0:04:39.7]}
5... b6 {[%clk 0:04:58.1]} 6. Nd2 {[%clk 0:04:38.2]} 6... Bb7 {[%clk 0:04:57.7]}
7. Ngf3 {[%clk 0:04:37.5]} 7... e6 {[%clk 0:04:57.1]} 8. c4 {[%clk 0:04:33.6]}
8... Qa8 {[%clk 0:04:52.3]} 9. Qc2 {[%clk 0:04:29.6]} 9... Nb4 {[%clk
0:04:51.3]} 10. Qc3 {[%clk 0:04:26.2]} 10... Ne4 {[%clk 0:04:48.7]} 11. Nxe4
{[%clk 0:04:22.2]} 11... Bxe4 {[%clk 0:04:48.6]} 12. a4 {[%clk 0:04:19.6]} 12...
Nc2+ {[%clk 0:04:46.1]} 13. Ke2 {[%clk 0:04:11.5]} 13... Bb4 {[%clk 0:04:44.7]}
14. Qxb4 {[%clk 0:02:23.9]} 14... Nxb4 {[%clk 0:04:44.6]} 15. d5 {[%clk
0:02:22.6]} 15... exd5 {[%clk 0:04:37.9]} 16. Bxg7 {[%clk 0:02:05.1]} 16... dxc4
{[%clk 0:04:33.3]} 17. Bxh8 {[%clk 0:02:02.9]} 17... Bd3+ {[%clk 0:04:32.5]} 18.
Kd2 {[%clk 0:02:00.6]} 18... Qd5 {[%clk 0:04:30.9]} 19. Nd4 {[%clk 0:01:58.2]}
19... Qxg2 {[%clk 0:04:14.9]} 20. Rag1 {[%clk 0:01:54.1]} 20... Qxf2+ {[%clk
0:04:13.6]} 21. Kc3 {[%clk 0:01:49.2]} 21... Na2# {[%clk 0:04:10.3]} 0-1

[Event "Live Chess"]
[Site "Chess.com"]
[Date "2024.06.01"]
[Round "-"]
[White "Keithdfg"]
[Black "vincents82"]
[Result "0-1"]
[WhiteElo "1748"]
[BlackElo "2093"]
[TimeControl "300"]
[EndTime "14:25:21 PDT"]
[Termination "vincents82 won by resignation"]

1. Nf3 {[%clk 0:04:54.2]} 1... d5 {[%clk 0:04:55.9]} 2. d3 {[%clk 0:04:52.1]}
2... Nf6 {[%clk 0:04:55.1]} 3. Nbd2 {[%clk 0:04:51.6]} 3... Bf5 {[%clk
0:04:54.2]} 4. g3 {[%clk 0:04:49.2]} 4... e5 {[%clk 0:04:53.4]} 5. Bg2 {[%clk
0:04:47.3]} 5... Nbd7 {[%clk 0:04:51.6]} 6. O-O {[%clk 0:04:46]} 6... Bd6 {[%clk
0:04:50.6]} 7. c4 {[%clk 0:04:44.9]} 7... c6 {[%clk 0:04:49.2]} 8. a3 {[%clk
0:04:33.6]} 8... O-O {[%clk 0:04:46.4]} 9. b4 {[%clk 0:04:30.6]} 9... e4 {[%clk
0:04:43.8]} 10. Nd4 {[%clk 0:04:29.2]} 10... Bg6 {[%clk 0:04:42.2]} 11. Bb2
{[%clk 0:04:21.3]} 11... exd3 {[%clk 0:04:40.9]} 0-1

[Event "Live Chess"]
[Site "Chess.com"]
[Date "2024.06.01"]
[Round "-"]
[White "gmnorfolk"]
[Black "FMOlexandrProhorov"]
[Result "1/2-1/2"]
[WhiteElo "2088"]
[BlackElo "2338"]
[TimeControl "300"]
[EndTime "14:25:22 PDT"]
[Termination "Game drawn by repetition"]

1. c4 {[%clk 0:04:56]} 1... Nf6 {[%clk 0:04:55.5]} 2. Nc3 {[%clk 0:04:54.4]}
2... d5 {[%clk 0:04:52.3]} 3. cxd5 {[%clk 0:04:52.9]} 3... Nxd5 {[%clk
0:04:51.7]} 4. Nf3 {[%clk 0:04:52.5]} 4... g6 {[%clk 0:04:50.6]} 5. Qa4+ {[%clk
0:04:51]} 5... Nc6 {[%clk 0:04:48.7]} 6. Ne5 {[%clk 0:04:47.8]} 6... Bd7 {[%clk
0:04:45.7]} 7. Nxd7 {[%clk 0:04:46.6]} 7... Qxd7 {[%clk 0:04:44.4]} 8. e3 {[%clk
0:04:25.5]} 8... Bg7 {[%clk 0:04:36.9]} 9. Bb5 {[%clk 0:04:21.3]} 9... O-O
{[%clk 0:04:35.6]} 10. Bxc6 {[%clk 0:04:18.9]} 10... bxc6 {[%clk 0:04:34.4]} 11.
Nxd5 {[%clk 0:04:14.8]} 11... Qxd5 {[%clk 0:04:32.3]} 12. O-O {[%clk 0:04:13.8]}
12... c5 {[%clk 0:04:26.9]} 13. Qc2 {[%clk 0:04:04.4]} 13... Rab8 {[%clk
0:04:21]} 14. d3 {[%clk 0:03:58.1]} 14... Rfd8 {[%clk 0:04:19.1]} 15. Rd1 {[%clk
0:03:56.1]} 15... c4 {[%clk 0:04:16.1]} 16. d4 {[%clk 0:03:54.2]} 16... c5
{[%clk 0:04:15.1]} 17. e4 {[%clk 0:03:52.8]} 17... Qh5 {[%clk 0:04:07]} 18. Rf1
{[%clk 0:03:13.9]} 18... cxd4 {[%clk 0:04:01.6]} 19. Qxc4 {[%clk 0:03:10.9]}
19... d3 {[%clk 0:03:49.6]} 20. Be3 {[%clk 0:03:09.7]} 20... Rxb2 {[%clk
0:03:41.6]} 21. Rad1 {[%clk 0:03:08.4]} 21... Qe2 {[%clk 0:03:25.6]} 22. Rfe1
{[%clk 0:02:50.7]} 22... Qc2 {[%clk 0:03:22.6]} 23. Qxc2 {[%clk 0:02:14.2]}
23... Rxc2 {[%clk 0:03:20.1]} 24. Bxa7 {[%clk 0:02:11]} 24... d2 {[%clk
0:03:09.5]} 25. Rf1 {[%clk 0:02:06.8]} 25... Rxa2 {[%clk 0:03:05.4]} 26. Be3
{[%clk 0:02:05.7]} 26... Rd3 {[%clk 0:03:03.2]} 27. Rb1 {[%clk 0:01:47]} 27...
f5 {[%clk 0:02:52.1]} 28. exf5 {[%clk 0:01:35.3]} 28... gxf5 {[%clk 0:02:41.5]}
29. g3 {[%clk 0:01:32.8]} 29... Kf7 {[%clk 0:02:37]} 30. Rfd1 {[%clk 0:01:29.7]}
30... Rc2 {[%clk 0:02:26]} 31. Kf1 {[%clk 0:01:26.3]} 31... e5 {[%clk
0:02:23.6]} 32. Ke2 {[%clk 0:01:24.9]} 32... e4 {[%clk 0:02:20.2]} 33. Rb7+
{[%clk 0:01:01.8]} 33... Kg6 {[%clk 0:02:18]} 34. Rb6+ {[%clk 0:00:58.9]} 34...
Kh5 {[%clk 0:02:12.1]} 35. h3 {[%clk 0:00:57.1]} 35... Ra2 {[%clk 0:01:41]} 36.
g4+ {[%clk 0:00:45.6]} 36... fxg4 {[%clk 0:01:39.1]} 37. hxg4+ {[%clk
0:00:40.7]} 37... Kxg4 {[%clk 0:01:34.3]} 38. Rb5 {[%clk 0:00:15.3]} 38... h6
{[%clk 0:01:23.4]} 39. Rg1+ {[%clk 0:00:13.7]} 39... Kh4 {[%clk 0:01:16.1]} 40.
Rh1+ {[%clk 0:00:10]} 40... Kg4 {[%clk 0:01:14.7]} 41. Rg1+ {[%clk 0:00:06.1]}
41... Kh4 {[%clk 0:01:09.7]} 42. Rh1+ {[%clk 0:00:05.3]} 42... Kg4 {[%clk
0:01:08.6]} 43. Rg1+ {[%clk 0:00:04.5]} 1/2-1/2

[Event "Live Chess"]
[Site "Chess.com"]
[Date "2024.06.01"]
[Round "-"]
[White "AnotherOneBadPlayer"]
[Black "Brooms1989"]
[Result "1-0"]
[WhiteElo "2215"]
[BlackElo "1125"]
[TimeControl "300"]
[EndTime "14:25:38 PDT"]
[Termination "AnotherOneBadPlayer won by resignation"]

1. Nf3 {[%clk 0:04:56.8]} 1... Nf6 {[%clk 0:04:58.3]} 2. b3 {[%clk 0:04:55.4]}
2... g6 {[%clk 0:04:55.7]} 3. Bb2 {[%clk 0:04:54.4]} 3... Bg7 {[%clk 0:04:51.3]}
4. e3 {[%clk 0:04:53.5]} 4... d6 {[%clk 0:04:49.9]} 5. Be2 {[%clk 0:04:49.3]}
5... O-O {[%clk 0:04:48]} 6. O-O {[%clk 0:04:44.4]} 6... e5 {[%clk 0:04:46.9]}
7. d4 {[%clk 0:04:26.9]} 7... Nc6 {[%clk 0:04:41.3]} 8. d5 {[%clk 0:04:21.4]}
8... Ne7 {[%clk 0:04:39.2]} 9. c4 {[%clk 0:04:19.8]} 9... Nh5 {[%clk 0:04:22.2]}
10. Nbd2 {[%clk 0:04:14]} 10... f5 {[%clk 0:04:04.5]} 11. Ne1 {[%clk 0:04:11.4]}
11... Nf6 {[%clk 0:03:59.2]} 12. f4 {[%clk 0:04:01.4]} 12... Bh6 {[%clk
0:03:22]} 13. Nc2 {[%clk 0:03:41.1]} 13... e4 {[%clk 0:02:59.5]} 14. Nd4 {[%clk
0:03:28.4]} 14... Kh8 {[%clk 0:02:50.8]} 15. h3 {[%clk 0:02:39.1]} 15... c5
{[%clk 0:02:43.3]} 16. dxc6 {[%clk 0:02:33.8]} 16... Nxc6 {[%clk 0:02:40.4]} 17.
Nxc6 {[%clk 0:02:31.3]} 17... bxc6 {[%clk 0:02:39]} 18. g4 {[%clk 0:02:22.3]}
18... Bg7 {[%clk 0:02:25.6]} 19. g5 {[%clk 0:02:12.1]} 19... Nd7 {[%clk
0:02:15.9]} 20. Bxg7+ {[%clk 0:02:09.3]} 20... Kxg7 {[%clk 0:02:15.8]} 21. Qc2
{[%clk 0:02:03.1]} 21... h6 {[%clk 0:01:57.4]} 22. h4 {[%clk 0:01:57.6]} 22...
hxg5 {[%clk 0:01:55.4]} 23. hxg5 {[%clk 0:01:55.2]} 23... Rh8 {[%clk 0:01:48]}
24. Qc3+ {[%clk 0:01:52.5]} 24... Kg8 {[%clk 0:01:45.8]} 25. Kg2 {[%clk
0:01:49.7]} 25... Kf7 {[%clk 0:01:30.7]} 26. Rh1 {[%clk 0:01:37.2]} 26... Ne5
{[%clk 0:00:57.6]} 27. Rxh8 {[%clk 0:01:26.3]} 27... Qxh8 {[%clk 0:00:44.8]} 28.
fxe5 {[%clk 0:01:20.6]} 28... dxe5 {[%clk 0:00:43.2]} 29. Rh1 {[%clk 0:01:14.7]}
1-0